bitfinex/quotes_ETHUSD_20251006
["timestamp","ask_amount","ask_price","bid_price","bid_amount"]
[1759776771449,7.96247598,4704.2,4704.1,12.08096528]
[1759776771620,7.96247598,4704.2,4704.1,36.96858028]
[1759776771823,7.96247598,4704.2,4704.1,36.08107228]
[1759776772333,7.96247598,4704.2,4704.1,39.46024628]
[1759776772541,7.96247598,4704.2,4704.1,32.35963828]
[1759776772724,7.96247598,4704.2,4704.1,32.35863828]
[1759776773254,7.96247598,4704.2,4704.1,37.43112028]
[1759776773953,7.96247598,4704.2,4704.1,34.43516128]
[1759776774358,7.96247598,4704.2,4704.1,32.41851328]
[1759776774548,6.96247598,4704.2,4704.1,36.06951328]
[1759776774855,6.96247598,4704.2,4704.1,30.33114228]
[1759776775032,6.96247598,4704.2,4704.1,34.98114228]
[1759776775352,6.96247598,4704.2,4704.1,24.61265428]
[1759776775529,6.96247598,4704.2,4704.1,12.606001]
[1759776775730,7.42537598,4704.2,4704.1,9.939338]
[1759776775944,7.42537598,4704.2,4704.1,12.381338]
[1759776776323,7.42537598,4704.2,4704.1,23.68862214]
[1759776776622,7.42537598,4704.2,4704.1,19.97397914]
[1759776776839,7.42537598,4704.2,4704.1,20.289174]
[1759776777055,7.42537598,4704.2,4704.1,7.03555]
[1759776777252,0.6336,4704.1,4703.9,0.5]
[1759776777554,0.6336,4704.1,4704.0,16.211272]
[1759776777758,7.82205358,4704.2,4704.1,22.45510114]
[1759776777759,6.96247598,4704.2,4704.1,22.45510114]
[1759776777924,6.96247598,4704.2,4704.1,21.33144472]
[1759776778133,6.96247598,4704.2,4704.1,17.06506172]
[1759776778935,6.96247598,4704.2,4704.1,22.49500372]
[1759776779135,6.96247598,4704.2,4704.1,20.55588372]
[1759776779937,6.96247598,4704.2,4704.1,24.91732872]
[1759776780137,2.62495196,4704.2,4704.1,24.46367672]
[1759776780434,0.01,4704.9,4704.3,2.12571477]
[1759776780666,0.01,4704.9,4704.7,2.12553404]
[1759776780859,0.01,4704.9,4704.8,10.88824471]
[1759776781160,0.01,4704.9,4704.8,39.80832944]
[1759776781362,0.01,4704.9,4704.8,37.36432944]
[1759776781661,0.01,4704.9,4704.8,42.01632944]
[1759776782356,0.01,4704.9,4704.8,43.53517293]
[1759776782865,1.23,4705.2,4704.9,2.4]
[1759776783167,0.4502,4706.4,4705.8,2.12503718]
[1759776783344,0.4502,4706.4,4705.8,27.99036218]
[1759776783544,0.4502,4706.4,4705.8,27.69016318]
[1759776783776,8.61,4706.6,4705.8,20.68274616]
[1759776783935,8.61,4706.6,4705.8,21.063737]
[1759776784134,8.61,4706.6,4705.8,18.513702]
[1759776784361,0.4502,4706.3,4705.8,16.070702]
[1759776784669,0.4502,4706.3,4705.8,18.243016]
[1759776784853,0.4502,4706.3,4705.8,15.03396]
[1759776785166,0.4502,4706.3,4705.8,19.813659]
[1759776785881,8.61,4706.6,4705.8,17.60895016]
[1759776786081,0.4502,4706.3,4705.8,4.842]
[1759776786237,0.4502,4706.3,4705.8,15.784947]
[1759776787177,8.61,4706.6,4705.8,20.292256]
[1759776787340,0.4502,4706.5,4705.8,20.292256]
[1759776787538,0.4502,4706.5,4705.8,17.850256]
[1759776787766,0.4502,4706.5,4705.8,20.291256]
[1759776788172,0.4502,4706.3,4705.8,10.970751]
[1759776788360,1.30462,4705.9,4705.5,1.13899016]
[1759776788567,0.4502,4705.8,4705.1,1.13899016]
[1759776788742,0.6336,4705.6,4704.2,1.63899016]
[1759776788952,2.75931477,4704.3,4704.2,0.5]
[1759776789140,1.0838,4704.3,4704.2,2.944]
[1759776789857,3.31789477,4704.3,4704.2,2.944]
[1759776790283,3.42429477,4704.3,4704.2,2.944]
[1759776790492,3.42429477,4704.3,4704.2,0.5]
[1759776790653,3.42429477,4704.3,4704.2,2.943]
[1759776791055,1.29858,4704.3,4704.2,2.943]
[1759776791376,1.1902,4704.3,4704.2,2.943]
[1759776791991,3.31591477,4704.3,4704.2,2.943]
[1759776792998,0.74,4704.3,4704.2,2.943]
[1759776793210,0.1064,4704.3,4704.2,7.68057158]
[1759776793519,0.67102,4705.9,4704.2,7.68057158]
[1759776793520,0.1064,4704.6,4704.2,7.68057158]
[1759776793717,0.1064,4704.6,4704.3,12.579313]
[1759776793915,0.6336,4704.5,4704.4,8.432893]
[1759776794082,0.6336,4704.5,4704.4,6.896083]
[1759776795202,0.6336,4704.5,4704.4,2.449]
[1759776795583,0.6336,4704.5,4704.4,4.985894]
[1759776795784,0.6336,4704.5,4704.4,4.984894]
[1759776796294,0.6336,4704.5,4704.4,4.926894]
[1759776797208,0.6336,4704.5,4704.3,0.606285]
[1759776797400,0.4502,4704.4,4704.3,0.606285]
[1759776797598,1.0838,4704.4,4704.3,3.053285]
[1759776797802,3.20946958,4704.4,4704.3,3.053285]
[1759776798101,3.75361551,4704.4,4704.3,2.553285]
[1759776798622,3.75361551,4704.4,4704.3,0.106285]
[1759776798822,3.75361551,4704.4,4704.3,2.553285]
[1759776799686,3.75361551,4704.4,4704.3,0.106285]
[1759776800093,3.75361551,4704.4,4704.3,0.606285]
[1759776800298,3.75361551,4704.4,4704.3,2.596285]
[1759776800923,3.75361551,4704.4,4704.3,0.606285]
[1759776801129,3.75361551,4704.4,4704.3,2.910285]
[1759776801532,3.75361551,4704.4,4704.3,0.606285]
[1759776801846,3.75361551,4704.4,4704.3,3.052285]
[1759776802435,3.75361551,4704.4,4704.3,0.606285]
[1759776802704,3.75361551,4704.4,4704.3,3.052285]
[1759776802928,3.75361551,4704.4,4704.3,0.606285]
[1759776803148,3.75361551,4704.4,4704.3,3.052285]
[1759776803321,3.75361551,4704.4,4704.3,0.606285]
[1759776803513,3.75361551,4704.4,4704.3,3.051285]
[1759776804410,3.75361551,4704.4,4704.3,0.606285]
[1759776804612,3.75361551,4704.4,4704.3,2.455285]
[1759776804814,3.75361551,4704.4,4704.3,0.606285]
[1759776805118,3.75361551,4704.4,4704.3,3.051285]
[1759776806448,3.75361551,4704.4,4704.3,0.606285]
[1759776806629,3.75361551,4704.4,4704.3,3.051285]
[1759776807046,3.75361551,4704.4,4704.3,0.606285]
[1759776807226,3.30341551,4704.4,4704.3,3.050285]
[1759776807427,3.75361551,4704.4,4704.3,3.050285]
[1759776808792,2.75931477,4704.3,4704.1,0.001]
[1759776809077,2.86575995,4704.2,4704.1,0.001]
[1759776809287,3.31595995,4704.2,4704.1,0.374]
[1759776809493,3.26595995,4704.2,4704.1,0.374]
[1759776810755,3.26595995,4704.2,4704.1,0.001]
[1759776810953,4.07754245,4704.2,4704.1,0.728]
[1759776812061,4.07754245,4704.2,4704.1,0.001]
[1759776812256,4.07754245,4704.2,4704.1,0.373]
[1759776812582,4.07754245,4704.2,4704.1,0.001]
[1759776812784,4.07754245,4704.2,4704.1,0.373]
[1759776812988,3.62734245,4704.2,4704.1,0.001]
[1759776813143,2.81575995,4704.2,4704.1,0.727]
[1759776813346,3.26235995,4704.2,4704.1,1.125]
[1759776813759,3.26235995,4704.2,4704.1,0.001]
[1759776814077,3.26235995,4704.2,4704.1,2.444]
[1759776815355,3.26235995,4704.2,4704.1,0.001]
[1759776815676,3.80116313,4704.2,4704.1,2.444]
[1759776816260,3.80116313,4704.2,4704.1,0.001]
[1759776816582,3.80116313,4704.2,4704.1,2.444]
[1759776817682,0.64520318,4704.2,4704.1,2.444]
[1759776817849,2.23215995,4704.2,4704.1,2.444]
[1759776818046,2.23215995,4704.2,4704.1,0.001]
[1759776818047,2.86575995,4704.2,4704.1,0.001]
[1759776818451,2.86575995,4704.2,4704.1,1.205]
[1759776818878,2.86575995,4704.2,4704.1,2.443]
[1759776819484,2.86575995,4704.2,4704.1,2.442]
[1759776819666,3.40858365,4704.2,4704.1,2.442]
[1759776820266,3.40858365,4704.2,4704.1,0.001]
[1759776820590,3.40858365,4704.2,4704.1,2.442]
[1759776822786,3.40858365,4704.2,4704.1,0.001]
[1759776822986,3.84538365,4704.2,4704.1,2.441]
[1759776823287,3.40858365,4704.2,4704.1,2.441]
[1759776823707,3.40858365,4704.2,4704.1,2.8699]
[1759776823906,2.86575995,4704.2,4704.1,2.8699]
[1759776824202,2.86575995,4704.2,4704.1,2.441]
[1759776824905,2.86575995,4704.2,4704.1,2.8699]
[1759776826264,2.86575995,4704.2,4704.1,0.4299]
[1759776826466,2.86575995,4704.2,4704.1,2.8699]
[1759776826703,2.86575995,4704.2,4704.1,0.4299]
[1759776826951,2.86575995,4704.2,4704.1,2.8699]
[1759776827863,3.36490405,4704.2,4704.1,0.001]
[1759776828068,3.36490405,4704.2,4704.1,2.441]
[1759776828279,3.36490405,4704.2,4704.1,0.001]
[1759776828601,3.36490405,4704.2,4704.1,2.441]
[1759776831611,3.36490405,4704.2,4704.1,2.44]
[1759776832620,3.36690405,4704.2,4704.1,2.44]
[1759776832826,0.742,4704.2,4704.1,2.8689]
[1759776833795,0.1084,4704.2,4704.1,2.8689]
[1759776834122,0.742,4704.2,4704.1,2.8689]
[1759776836592,0.1084,4704.2,4704.1,2.8689]
[1759776836796,0.002,4704.2,4704.1,11.3698823]
[1759776837092,0.002,4704.2,4704.1,14.1683333]
[1759776837322,0.002,4704.2,4704.1,13.02934314]
[1759776837528,0.002,4704.2,4704.1,9.76578214]
[1759776837725,0.002,4704.2,4704.1,12.47750414]
[1759776838347,0.002,4704.2,4704.1,12.47650414]
[1759776838525,0.002,4704.2,4704.1,13.6154943]
[1759776838728,0.002,4704.2,4704.1,19.15002414]
[1759776838930,0.002,4704.2,4704.1,17.43464014]
[1759776839846,0.002,4704.2,4704.1,21.05000914]
[1759776840145,0.002,4704.2,4704.1,18.18986714]
[1759776840845,0.002,4704.2,4704.1,20.08564014]
[1759776841052,0.002,4704.2,4704.1,15.91639714]
[1759776841440,0.002,4704.2,4704.1,18.31639714]
[1759776841974,0.1064,4704.6,4704.2,2.4]
[1759776842260,0.74,4704.6,4704.5,2.1256244]
[1759776842561,0.74,4704.6,4704.5,15.6352874]
[1759776842767,0.74,4704.6,4704.5,19.2545434]
[1759776842958,0.002,4704.7,4704.6,2.12557922]
[1759776843156,0.002,4704.7,4704.6,20.1221608]
[1759776843457,0.002,4704.7,4704.6,18.98405347]
[1759776843848,0.002,4704.7,4704.6,28.04829047]
[1759776844023,0.002,4704.7,4704.6,24.00405347]
[1759776844353,0.01,4705.9,4704.6,24.00405347]
[1759776844354,0.01,4705.9,4705.3,2.12522331]
[1759776844551,0.01,4705.9,4705.4,4.834]
[1759776844853,0.01,4705.9,4705.4,5.2621]
[1759776845053,0.01,4705.9,4705.5,2.8281]
[1759776845252,0.74,4705.6,4705.5,2.8281]
[1759776845553,0.74,4705.6,4705.5,4.95327267]
[1759776845741,0.74,4705.6,4705.5,9.59527267]
[1759776846150,6.15,4706.2,4705.6,32.4]
[1759776846151,1.02789848,4706.2,4705.6,32.4]
[1759776846326,3.01190794,4706.6,4706.5,2.12472113]
[1759776846657,3.01190794,4706.6,4706.5,33.58287738]
[1759776846824,3.01190794,4706.6,4706.5,35.26100338]
[1759776847025,3.00190794,4706.6,4706.5,35.26100338]
[1759776847251,1.24,4706.9,4706.8,2.1245857]
[1759776847459,2.46,4707.7,4707.5,2.12426978]
[1759776847659,2.46,4707.7,4707.6,4.52422465]
[1759776847832,2.46,4707.7,4707.6,26.01098965]
[1759776848528,2.46,4707.7,4707.6,34.95232465]
[1759776848961,2.46,4707.7,4707.6,25.69327365]
[1759776849140,2.46,4707.7,4707.6,23.92582265]
[1759776849653,2.46,4707.7,4707.6,13.61106865]
[1759776850263,2.46,4707.7,4707.6,8.97206865]
[1759776850432,2.462,4707.7,4707.6,13.61106865]
[1759776850627,2.462,4707.7,4707.6,21.51283865]
[1759776851226,2.462,4707.7,4707.6,0.4281]
[1759776851524,2.462,4707.7,4707.6,7.4661]
[1759776851752,2.462,4707.7,4707.6,10.069112]
[1759776852227,2.462,4707.7,4707.6,12.19333665]
[1759776852427,2.462,4707.7,4707.6,4.970916]
[1759776852630,0.6336,4707.6,4706.9,0.4281]
[1759776852860,0.6336,4707.6,4706.4,0.70328225]
[1759776853063,2.75782491,4707.6,4706.5,6.778806]
[1759776853261,2.75782491,4707.6,4706.6,4.637]
[1759776853469,0.6336,4707.6,4706.4,0.4281]
[1759776853668,1.44070527,4707.6,4706.5,5.703982]
[1759776853854,0.6336,4707.4,4706.7,2.4]
[1759776854062,0.6336,4707.4,4706.0,0.4281]
[1759776854264,0.6336,4707.4,4706.8,2.208]
[1759776854463,0.6336,4707.4,4706.9,2.429]
[1759776854658,1.01488,4707.4,4706.9,2.429]
[1759776854858,1.48488,4707.4,4707.0,2.429]
[1759776855067,1.48488,4707.4,4706.4,2.12474004]
[1759776855263,1.48488,4707.4,4706.6,2.4]
[1759776855442,1.48488,4707.4,4706.3,2.1247765]
[1759776855643,3.60919978,4707.4,4706.5,2.4]
[1759776855970,1.48488,4707.4,4706.2,4.52485657]
[1759776856270,0.1064,4706.8,4706.3,4.335584]
[1759776856469,0.1064,4706.8,4706.4,4.637]
[1759776856771,0.1064,4706.8,4706.6,2.12467284]
[1759776856958,0.74,4706.8,4706.7,2.8561]
[1759776857274,2.7092,4707.7,4707.1,2.12441504]
[1759776857275,2.462,4707.7,4707.1,2.12441504]
[1759776857454,0.1064,4707.5,4707.3,2.4]
[1759776857654,2.462,4707.7,4707.3,2.4]
[1759776857655,2.462,4707.7,4707.6,2.12422465]
[1759776857859,2.462,4707.7,4707.6,8.514555]
[1759776858169,2.462,4707.7,4707.6,4.753716]
[1759776858476,3.0956,4707.7,4707.6,0.4281]
[1759776858656,3.0956,4707.7,4707.6,5.273756]
[1759776858851,3.0956,4707.7,4707.6,7.702756]
[1759776859459,3.0956,4707.7,4707.6,7.167089]
[1759776859946,3.0956,4707.7,4707.6,4.415716]
[1759776860146,3.0956,4707.7,4707.6,6.843716]
[1759776860376,3.0956,4707.7,4707.6,6.415616]
[1759776860779,2.462,4707.7,4707.6,8.815616]
[1759776860984,2.462,4707.7,4707.6,25.5412049]
[1759776861754,2.462,4707.7,4707.6,14.4497029]
[1759776862066,2.462,4707.7,4707.6,18.41857565]
[1759776862575,2.462,4707.7,4707.6,14.21181565]
[1759776862961,2.462,4707.7,4707.6,26.68425165]
[1759776863155,2.462,4707.7,4707.6,30.86325165]
[1759776863978,2.462,4707.7,4707.6,30.48128465]
[1759776864657,2.462,4707.7,4707.6,25.84728465]
[1759776864859,2.462,4707.7,4707.6,30.7564669]
[1759776865068,2.462,4707.7,4707.6,37.8626339]
[1759776866079,2.462,4707.7,4707.6,35.4067989]
[1759776867054,2.462,4707.7,4707.6,39.8615069]
[1759776867250,2.462,4707.7,4707.6,40.14850926]
[1759776867656,2.462,4707.7,4707.6,40.25490926]
[1759776868577,2.462,4707.7,4707.6,40.25590926]
[1759776870219,2.462,4707.7,4707.6,17.00382326]
[1759776870380,2.462,4707.7,4707.6,19.5685099]
[1759776870581,2.462,4707.7,4707.6,14.9375099]
[1759776870786,2.462,4707.7,4707.6,19.5685099]
[1759776871106,2.462,4707.7,4707.6,20.6370669]
[1759776871277,2.462,4707.7,4707.6,15.71782065]
[1759776871482,2.462,4707.7,4707.6,19.19874865]
[1759776872025,2.462,4707.7,4707.6,14.56774865]
[1759776872208,2.462,4707.7,4707.6,17.03655565]
[1759776872505,2.462,4707.7,4707.6,16.60845565]
[1759776873090,2.462,4707.7,4707.6,28.05195565]
[1759776873408,2.462,4707.7,4707.6,30.92067065]
[1759776873898,2.462,4707.7,4707.6,31.22126956]
[1759776874101,2.462,4707.7,4707.6,32.87871356]
[1759776874300,2.462,4707.7,4707.6,32.58873056]
[1759776874602,2.462,4707.7,4707.6,22.82103356]
[1759776874805,2.462,4707.7,4707.6,27.45103356]
[1759776875179,2.462,4707.7,4707.6,39.99032356]
[1759776876150,0.01,4707.9,4707.8,2.12413441]
[1759776876294,0.01,4707.9,4707.8,37.24673332]
[1759776876498,0.01,4707.9,4707.8,37.67653332]
[1759776878604,0.01,4707.9,4707.8,39.88353332]
[1759776880402,0.01,4707.9,4707.8,35.25453332]
[1759776880633,0.01,4707.9,4707.8,39.88353332]
[1759776881336,0.01,4707.9,4707.8,35.25453332]
[1759776881636,0.01,4707.9,4707.8,39.88353332]
[1759776882937,0.01,4707.9,4707.8,34.60787832]
[1759776883328,0.01,4707.9,4707.8,33.76460832]
[1759776883532,0.01,4707.9,4707.8,27.64099091]
[1759776883843,0.01,4707.9,4707.8,11.63652]
[1759776884007,0.01,4707.9,4707.8,9.13165441]
[1759776884339,0.01,4707.9,4707.8,11.63652]
[1759776884548,0.01,4707.9,4707.8,15.98636741]
[1759776885313,0.01,4707.9,4707.8,10.74086041]
[1759776885513,0.01,4707.9,4707.8,16.36586641]
[1759776885713,0.01,4707.9,4707.8,8.32057441]
[1759776886044,0.4656,4707.9,4707.8,12.94957441]
[1759776886351,0.01,4707.9,4707.8,12.94957441]
[1759776886525,0.01,4707.9,4707.8,13.97948341]
[1759776887243,0.012,4707.9,4707.8,11.77248341]
[1759776887452,0.012,4707.9,4707.8,19.44437041]
[1759776888019,0.012,4707.9,4707.8,10.377418]
[1759776888345,0.012,4707.9,4707.8,12.50155241]
[1759776888552,0.012,4707.9,4707.8,14.58515141]
[1759776889433,0.012,4707.9,4707.8,8.61744067]
[1759776889623,0.1064,4708.2,4708.1,2.12399906]
[1759776889819,0.002,4708.4,4708.1,26.72892651]
[1759776890025,0.002,4708.4,4708.2,30.4298]
[1759776890224,0.002,4708.4,4708.3,19.14688284]
[1759776890742,0.002,4708.4,4708.3,23.19365325]
[1759776890944,0.002,4708.4,4708.3,22.05576675]
[1759776891557,0.002,4708.4,4708.3,28.44834475]
[1759776891943,0.002,4708.4,4708.3,27.03084475]
[1759776892532,0.002,4708.4,4708.3,23.02773425]
[1759776892856,0.002,4708.4,4708.3,22.90838675]
[1759776893061,0.002,4708.4,4708.3,24.04627325]
[1759776893354,0.002,4708.4,4708.3,21.82521675]
[1759776893657,0.002,4708.4,4708.3,27.22085091]
[1759776894161,0.002,4708.4,4708.3,26.08290975]
[1759776894592,0.002,4708.4,4708.3,23.79712175]
[1759776894758,0.002,4708.4,4708.3,23.54510775]
[1759776894930,0.002,4708.4,4708.3,22.82618919]
[1759776895256,0.002,4708.4,4708.3,21.68830775]
[1759776895559,0.002,4708.4,4708.3,22.82616511]
[1759776895853,0.002,4708.4,4708.3,23.44390475]
[1759776896056,0.002,4708.4,4708.3,25.65306175]
[1759776896358,0.002,4708.4,4708.3,24.18799575]
[1759776896533,0.002,4708.4,4708.3,28.72179375]
[1759776896732,0.002,4708.4,4708.3,30.99232475]
[1759776897130,0.002,4708.4,4708.3,30.99529675]
[1759776897535,0.002,4708.4,4708.3,33.00094575]
[1759776897736,0.002,4708.4,4708.3,31.98348375]
[1759776897934,0.002,4708.4,4708.3,32.85430775]
[1759776898127,0.002,4708.4,4708.3,21.79807275]
[1759776898342,0.002,4708.4,4708.3,18.62721875]
[1759776899364,0.002,4708.4,4708.3,23.80080875]
[1759776899551,0.002,4708.4,4708.3,23.36426975]
[1759776899755,0.002,4708.4,4708.3,20.20593275]
[1759776900382,0.002,4708.4,4708.3,22.42967975]
[1759776900578,0.002,4708.4,4708.3,21.82407475]
[1759776900752,0.002,4708.4,4708.3,21.39839275]
[1759776900946,0.002,4708.4,4708.3,9.96204384]
[1759776901255,0.002,4708.4,4708.3,11.39769684]
[1759776902141,0.002,4708.4,4708.3,12.12809575]
[1759776902261,2.46,4709.7,4708.4,32.98760127]
[1759776902576,0.1064,4709.4,4709.3,2.12345783]
[1759776902775,0.1064,4709.4,4709.3,4.84605674]
[1759776902979,0.1064,4709.4,4709.3,11.76467074]
[1759776903171,0.1064,4709.4,4709.3,15.20520974]
[1759776903552,0.1064,4709.4,4709.3,11.07419874]
[1759776903753,0.1064,4709.4,4709.3,13.49619874]
[1759776904679,0.1064,4709.4,4709.3,11.07419874]
[1759776904887,0.1064,4709.4,4709.3,13.49519874]
[1759776905671,0.1064,4709.4,4709.3,14.6316232]
[1759776905887,0.1064,4709.4,4709.3,16.8376232]
[1759776906075,2.46,4709.7,4709.6,2.12332257]
[1759776906275,2.46,4709.7,4709.6,5.9790066]
[1759776906555,1.23,4710.3,4710.1,2.12309717]
[1759776906771,1.23,4710.3,4710.1,35.30329608]
[1759776906971,1.23,4710.3,4710.1,32.88810108]
[1759776907388,1.23,4710.3,4710.1,33.28150344]
[1759776907570,1.23,4710.3,4710.1,30.86050344]
[1759776907768,1.23,4710.3,4710.1,35.48750344]
[1759776908156,1.23,4710.3,4710.1,35.67569844]
[1759776908354,1.23,4710.3,4710.1,10.204759]
[1759776908557,0.6336,4710.1,4709.5,1.13172165]
[1759776908756,2.4157,4710.2,4709.4,2.12341274]
[1759776908757,0.1064,4709.7,4709.4,2.12341274]
[1759776908985,1.23,4710.2,4709.5,16.502281]
[1759776909183,1.23,4710.2,4709.7,3.53148057]
[1759776909400,1.23,4710.2,4709.9,2.4]
[1759776909598,1.23,4710.2,4710.0,4.490624]
[1759776909798,1.23,4710.2,4710.1,4.46941]
[1759776910104,1.23,4710.2,4710.1,5.5211]
[1759776910310,1.23,4710.2,4710.1,5.4011]
[1759776910604,1.6777,4710.2,4710.1,2.9801]
[1759776910813,1.6777,4710.2,4709.8,2.12318801]
[1759776911015,1.6777,4710.2,4709.9,6.75018679]
[1759776911170,1.6777,4710.2,4710.0,2.1231328]
[1759776911506,1.6777,4710.2,4710.1,4.54409717]
[1759776911710,1.23,4710.2,4710.1,4.54409717]
[1759776912203,1.23,4710.2,4709.4,3.55545146]
[1759776912204,0.6336,4710.1,4709.1,1.13148057]
[1759776912377,0.6336,4710.1,4708.6,2.06912021]
[1759776912378,0.6336,4709.9,4708.6,2.06912021]
[1759776912565,1.968,4710.2,4709.3,2.12345145]
[1759776912772,1.0813,4710.1,4709.4,2.72159891]
[1759776912994,1.23,4710.2,4709.5,21.876751]
[1759776913274,1.23,4710.2,4709.6,5.56153891]
[1759776913599,0.6336,4710.1,4709.0,2.4]
[1759776913801,0.6336,4710.1,4709.2,2.12348776]
[1759776914000,0.4477,4710.0,4709.1,2.12353846]
[1759776914188,0.4477,4710.0,4709.2,4.54450137]
[1759776914390,0.4477,4710.0,4709.3,4.584426]
[1759776914576,0.4477,4710.0,4709.4,9.66971894]
[1759776914778,0.4477,4710.0,4709.0,2.206]
[1759776914779,0.4477,4710.0,4709.5,12.627492]
[1759776914987,0.4477,4710.0,4709.6,2.421]
[1759776914988,1.0813,4709.9,4709.6,2.421]
[1759776915179,0.6336,4709.9,4709.6,2.421]
[1759776915375,1.23,4710.2,4709.7,2.4238739]
[1759776915574,1.23,4710.2,4709.8,18.925407]
[1759776915786,1.23,4710.2,4710.0,2.12314225]
[1759776916080,1.23,4710.2,4710.1,2.421]
[1759776916275,1.6777,4710.2,4709.5,2.4]
[1759776916483,1.6777,4710.2,4709.6,2.421]
[1759776916685,0.6336,4710.1,4709.0,1.13148057]
[1759776916884,0.6336,4709.9,4708.7,2.206]
[1759776917102,0.6336,4709.7,4708.8,6.85738312]
[1759776917314,0.6336,4709.7,4709.0,2.12355157]
[1759776917513,0.6336,4709.7,4708.9,2.1236292]
[1759776917818,0.6336,4709.7,4709.1,2.421]
[1759776918006,0.6336,4709.7,4709.2,2.421]
[1759776918208,0.6336,4709.7,4709.3,2.421]
[1759776918392,0.6336,4709.7,4708.4,1.13148057]
[1759776918393,0.6336,4709.5,4708.4,1.13148057]
[1759776918589,0.6336,4709.5,4708.2,2.88019891]
[1759776918590,0.6336,4709.5,4708.6,2.4]
[1759776918911,0.6336,4709.5,4708.7,6.024041]
[1759776919214,0.6336,4709.5,4708.7,2.12372841]
[1759776919215,0.1064,4708.8,4708.7,2.12372841]
[1759776919422,0.1064,4708.8,4708.7,8.64553941]
[1759776919586,0.1064,4708.8,4708.7,10.66102641]
[1759776920308,0.1064,4708.8,4708.2,3.26559891]
[1759776920309,0.1064,4708.8,4708.2,1.53847948]
[1759776920484,0.1064,4708.8,4708.1,0.01]
[1759776920686,0.1064,4708.3,4708.1,0.01]
[1759776920937,0.1064,4708.3,4708.2,2.422]
[1759776921700,0.5541,4708.3,4708.2,2.422]
[1759776922198,0.1064,4708.3,4708.2,2.72259891]
[1759776922522,0.1064,4708.3,4708.2,4.84655286]
[1759776922722,0.6336,4709.3,4708.2,8.63005491]
[1759776923024,1.6777,4710.2,4708.4,4.52386373]
[1759776923209,0.1064,4709.1,4709.0,2.12359311]
[1759776923410,0.1064,4709.4,4709.3,2.12345195]
[1759776923718,0.1064,4709.4,4709.3,17.70922895]
[1759776924024,0.1064,4709.4,4709.3,10.69120895]
[1759776924188,0.1064,4709.4,4709.3,6.96935683]
[1759776924389,0.1064,4709.4,4709.3,4.454837]
[1759776924589,0.1064,4709.4,4709.3,2.426]
[1759776925606,0.1064,4709.4,4709.3,7.37782683]
[1759776925812,0.1064,4709.4,4709.3,7.81520983]
[1759776926337,0.1064,4709.4,4709.3,5.237152]
[1759776926523,0.1064,4709.4,4709.2,2.12349654]
[1759776926702,0.1064,4709.4,4709.3,4.432655]
[1759776927112,0.1064,4709.4,4709.3,7.850655]
[1759776927739,0.1064,4709.4,4709.3,10.09769483]
[1759776928033,0.1064,4709.4,4709.3,7.974237]
[1759776928541,0.1064,4709.4,4709.3,6.502]
[1759776928847,0.4477,4709.4,4708.6,1.13148057]
[1759776929141,0.4477,4709.4,4708.7,2.429]
[1759776929708,0.6336,4709.3,4708.8,10.5]
[1759776929909,0.6336,4709.1,4708.8,10.5]
[1759776930139,1.0813,4709.1,4708.8,10.5]
[1759776930335,0.6336,4709.1,4708.9,2.429]
[1759776930508,0.6336,4709.1,4709.0,12.829]
[1759776930711,2.57107141,4709.5,4709.0,12.829]
[1759776930712,0.6336,4709.4,4709.0,12.829]
[1759776931012,0.6336,4709.4,4709.1,2.429]
[1759776931013,1.0813,4709.4,4709.1,2.429]
[1759776931343,0.6336,4709.2,4709.1,2.429]
[1759776932282,1.0813,4709.2,4709.1,2.428]
[1759776932434,1.0813,4709.2,4708.1,0.011]
[1759776932640,0.6336,4708.8,4708.1,0.011]
[1759776932837,0.6336,4708.4,4708.2,2.428]
[1759776933038,0.6336,4708.4,4708.1,0.011]
[1759776933039,0.6336,4708.2,4708.1,0.011]
[1759776933251,0.6336,4708.2,4708.1,2.439]
[1759776933678,0.6336,4708.2,4708.1,0.011]
[1759776933884,0.76456827,4711.3,4708.1,2.439]
[1759776933885,0.6336,4708.6,4708.1,2.439]
[1759776934070,0.6336,4708.4,4708.1,2.439]
[1759776934381,0.6336,4708.2,4708.1,0.011]
[1759776934674,0.6336,4709.2,4708.2,7.15043]
[1759776934862,0.6336,4709.0,4708.2,3.547193]
[1759776935062,0.6336,4709.0,4708.3,12.541759]
[1759776935266,0.6336,4709.0,4708.4,10.401904]
[1759776935468,0.6336,4709.3,4708.4,10.401904]
[1759776935686,0.002,4709.9,4708.5,0.29991558]
[1759776935991,0.002,4709.9,4708.8,2.12367189]
[1759776936191,0.002,4709.9,4708.9,32.59910558]
[1759776936394,0.002,4709.9,4709.0,21.290948]
[1759776936698,0.002,4709.9,4709.1,2.427]
[1759776936996,0.002,4709.9,4709.2,16.138146]
[1759776937305,0.002,4709.9,4709.2,15.2653]
[1759776937472,0.002,4709.9,4709.2,15.242062]
[1759776937669,0.002,4709.9,4709.2,14.56745]
[1759776937865,0.002,4709.9,4709.2,14.99955]
[1759776938103,0.002,4709.9,4709.3,14.66005]
[1759776938469,0.6336,4709.8,4709.4,2.427]
[1759776938669,0.6336,4709.8,4709.0,2.4]
[1759776938670,0.6336,4709.8,4709.5,2.426]
[1759776939104,0.74,4709.6,4709.5,2.426]
[1759776939298,0.6336,4709.5,4708.7,2.8321]
[1759776939599,0.1064,4709.0,4708.9,2.4]
[1759776939796,0.1064,4709.0,4708.9,32.8321]
[1759776940103,0.1064,4709.0,4708.9,30.418404]
[1759776940308,0.1064,4709.0,4708.9,20.556123]